fUSD/lending_fUSD_20240511
["ID","MTS","AMOUNT","RATE_DAILY","PERIOD"]
[326813081,1715416238160,-153.33,0.00012968,2]
[326813082,1715416238170,-153.33,0.00012968,2]
[326813083,1715416238179,-153.33,0.00012968,2]
[326813084,1715416238190,-169.6037572,0.00012968,2]
[326813085,1715416238202,-150.127,0.00012969,2]
[326813086,1715416238212,-151.79,0.0001297,2]
[326813087,1715416238221,-151.79,0.0001297,2]
[326813088,1715416238230,-169.6037572,0.0001297,2]
[326813089,1715416238241,-325.25166035,0.00012976,2]
[326813090,1715416238250,-181.19160963,0.00012976,2]
[326813091,1715416238260,-189.84945054,0.00012976,2]
[326813092,1715416238269,-291.15622066,0.00012977,2]
[326813093,1715416238282,-1034.52556333,0.00012977,3]
[326813094,1715416238292,-1879.93827754,0.00012977,2]
[326813095,1715416238301,-1020.0,0.00012978,2]
[326813096,1715416238312,-76559.86837118,0.00012978,2]
[326813126,1715416241622,-2712.70509554,0.00012978,2]
[326813127,1715416241635,-444.74490446,0.00012978,2]
[326813128,1715416241647,-672.51965882,0.00012978,2]
[326813129,1715416242418,-6378.8,0.00012978,2]
[326813167,1715416245854,-627.412,0.000129,2]
[326813168,1715416245866,-241.018,0.000129,2]
[326813169,1715416245875,-228.39358644,0.000129,2]
[326813170,1715416435524,769.47246927,9e-05,2]
[326813171,1715416556866,205.0,9.8e-05,2]
[326813172,1715416597104,1225.43204759,0.0001,2]
[326813194,1715416884205,1228.0,0.00011,2]
[326813202,1715417432049,-882.63658573,0.00011924,2]
[326813203,1715417432059,-800.0,0.00011925,2]
[326813204,1715417432068,-250.0,0.00011931,2]
[326813205,1715417432082,-178.72,0.00011942,2]
[326813206,1715417432092,-183.53,0.00011942,2]
[326813207,1715417432102,-200.0,0.00012,2]
[326813208,1715417432112,-409.86265904,0.00012281,2]
[326813209,1715417432121,-1139.140972,0.00012282,2]
[326813210,1715417432131,-2249.90397937,0.00012615,2]
[326813227,1715417432402,-816.10456145,0.00012615,2]
[326813229,1715417432414,-322.19374373,0.00012615,2]
[326813232,1715417432426,-112.09812994,0.00012615,2]
[326813234,1715417432436,-259.59441496,0.000128,2]
[326813236,1715417432448,-872.67905712,0.000128,2]
[326813240,1715417432474,-271.05628702,0.000128,2]
[326813283,1715417437952,-1096.6702409,0.000128,2]
[326813284,1715417437961,-1000.0,0.000128,2]
[326813285,1715417437971,-163.24,0.00012845,2]
[326813286,1715417437980,-163.24,0.00012845,2]
[326813287,1715417437992,-163.24,0.00012845,2]
[326813288,1715417438002,-13313.4744,0.00012848,2]
[326813289,1715417438011,-200.0,0.0001287,2]
[326813290,1715417438020,-200.0,0.00012872,2]
[326813291,1715417438030,-200.0,0.00012873,2]
[326813292,1715417438039,-200.0,0.00012873,2]
[326813293,1715417438048,-1000.0,0.00012874,2]
[326813294,1715417438057,-500.0,0.00012874,2]
[326813295,1715417438066,-822.27398894,0.00012878,2]
[326813296,1715417438078,-714.05488376,0.00012878,2]
[326813297,1715417438169,-1017.8135551,0.00012878,2]
[326813298,1715417438206,-2728.80266608,0.00012878,2]
[326813299,1715417438215,-317.09866092,0.00012878,2]
[326813300,1715417438224,-153.33,0.0001289,2]
[326813301,1715417438234,-205.12948401,0.00012899,2]
[326813302,1715417438243,-1066.54803811,0.000129,2]
[326813303,1715417438253,-170685.02093267,0.000129,2]
[326813304,1715417438265,-68233.24373133,0.000129,2]
[326813305,1715417438274,-163.24,0.000129,2]
[326813306,1715417438283,-163.24,0.000129,2]
[326813307,1715417438293,-10000.0,0.000129,2]
[326813308,1715417438303,-1000.0,0.000129,2]
[326813309,1715417438312,-1398.0,0.00012962,2]
[326813310,1715417438320,-2157.0,0.00012962,2]
[326813311,1715417438329,-972.0,0.00012962,2]
[326813312,1715417438338,-1260.0,0.00012962,2]
[326813313,1715417438347,-1155.0,0.00012962,2]
[326813314,1715417438356,-1226.0,0.00012962,2]
[326813315,1715417438365,-1863.0,0.00012962,2]
[326813316,1715417438374,-543.0,0.00012962,2]
[326813317,1715417438383,-612.0,0.00012962,2]
[326813318,1715417438393,-421.0,0.00012962,2]
[326813319,1715417438402,-438.0,0.00012962,2]
[326813320,1715417438411,-809.0,0.00012962,2]
[326813321,1715417438420,-2412.0,0.00012962,2]
[326813323,1715417438434,-1646.0,0.00012962,2]
[326813325,1715417438443,-150.0,0.00012962,2]
[326813327,1715417438452,-215.0,0.00012962,2]
[326813330,1715417438461,-1138.0,0.00012962,2]
[326813332,1715417438470,-444.0,0.00012962,2]
[326813334,1715417438479,-3156.0,0.00012962,2]
[326813335,1715417438489,-35941.137,0.00012962,2]
[326813336,1715417438499,-5748.0,0.00012962,2]
[326813337,1715417438508,-2487.893,0.00012962,2]
[326813338,1715417438517,-1059.0,0.00012962,2]
[326813339,1715417438527,-169.6037572,0.00012968,2]
[326813340,1715417438536,-153.33,0.00012968,2]
[326813341,1715417438545,-153.33,0.00012968,2]
[326813342,1715417438554,-153.33,0.00012968,2]
[326813343,1715417438563,-153.33,0.00012968,2]
[326813344,1715417438572,-153.33,0.00012968,2]
[326813345,1715417438581,-169.6037572,0.0001297,2]
[326813346,1715417438590,-151.79,0.0001297,2]
[326813347,1715417438599,-151.79,0.0001297,2]
[326813348,1715417438608,-153.33,0.0001297,2]
[326813349,1715417438617,-325.25166035,0.00012976,2]
[326813350,1715417438627,-181.19160963,0.00012976,2]
[326813351,1715417438635,-189.84945054,0.00012976,2]
[326813352,1715417438645,-1634.14850194,0.00012976,2]
[326813353,1715417438654,-42239.71070223,0.00012977,2]
[326813354,1715417438663,-711.54040194,0.00012977,2]
[326813355,1715417438676,-291.15622066,0.00012977,2]
[326813356,1715417438685,-1879.93827754,0.00012977,2]
[326813357,1715417438695,-1034.52556333,0.00012977,3]
[326813358,1715417438703,-1020.0,0.00012978,2]
[326813359,1715417438714,-180971.32068774,0.00012978,2]
[326813360,1715417439623,-289.47602467,0.00012978,2]
[326813361,1715417439716,-9398.10887743,0.00012978,2]
[326813378,1715417442610,-2269.27833366,0.00012978,2]
[326813379,1715417442621,-770.6560004,0.00012978,2]
[326813380,1715417442632,-1447.9,0.00012978,2]
[326813475,1715417446020,-150.127,0.00012962,2]
[326813477,1715417446030,-450.46554309,0.00012977,2]
[326813481,1715417446057,-489.50359568,0.00012977,2]
[326813483,1715417446067,-883.41150718,0.00012977,2]
[326813484,1715417446076,-3394.03069288,0.00012978,2]
[326813495,1715417446184,-31092.65049615,0.00012978,2]
[326813546,1715418528392,-164.74594414,0.00011776,2]
[326813563,1715418632247,-511.0,0.00011795,2]
[326813564,1715418632256,-1007.81036216,0.00011795,2]
[326813565,1715418632280,-17651.57480783,0.00011795,2]
[326813566,1715418632289,-177.22,0.00011826,2]
[326813567,1715418632298,-640.0,0.00011877,2]
[326813568,1715418632307,-250.0,0.00011895,2]
[326813569,1715418632316,-185.56,0.00011917,2]
[326813570,1715418632325,-360.0,0.00011945,2]
[326813571,1715418632334,-788.00500406,0.00012259,2]
[326813572,1715418632343,-164.74594413,0.00012327,2]
[326813573,1715418632352,-169.22510833,0.00012329,2]
[326813574,1715418632361,-523.42,0.000127,2]
[326813575,1715418632370,-150.0,0.000127,2]
[326813576,1715418632379,-357.95,0.000127,2]
[326813577,1715418632388,-868.62,0.000127,2]
[326813578,1715418632397,-415.01,0.000127,2]
[326813579,1715418632407,-868.62,0.000127,2]
[326813580,1715418632416,-522.21,0.000127,2]
[326813581,1715418632425,-523.13,0.000127,2]
[326813582,1715418632434,-868.62,0.000127,2]
[326813583,1715418632443,-351.31,0.000127,2]
[326813584,1715418632452,-351.31,0.000127,2]
[326813585,1715418632462,-868.62,0.000127,2]
[326813586,1715418632472,-150.0,0.000127,2]
[326813587,1715418632481,-530.97,0.000127,2]
[326813588,1715418632491,-351.31,0.000127,2]
[326813589,1715418632500,-868.62,0.000127,2]
[326813590,1715418632509,-868.62,0.000127,2]
[326813591,1715418632518,-150.0,0.000127,2]
[326813592,1715418632528,-868.62,0.000127,2]
[326813593,1715418632537,-499.99,0.000127,2]
[326813594,1715418632546,-150.0,0.000127,2]
[326813595,1715418632556,-322.58,0.000127,2]
[326813596,1715418632565,-1016.31287409,0.00012718,2]
[326813597,1715418632574,-600.0,0.0001277,2]
[326813598,1715418632583,-300.58,0.00012805,2]
[326813599,1715418632592,-2155.532,0.00012851,2]
[326813600,1715418632601,-1058.0,0.00012851,2]
[326813601,1715418632611,-200.0,0.00012873,2]
[326813602,1715418632619,-200.0,0.00012874,2]
[326813603,1715418632628,-200.0,0.00012874,2]
[326813604,1715418632637,-200.0,0.00012874,2]
[326813605,1715418632646,-1000.0,0.00012874,2]
[326813606,1715418632655,-200.0,0.00012874,2]
[326813607,1715418632664,-500.0,0.00012874,2]
[326813608,1715418632673,-1002.89891515,0.00012877,2]
[326813609,1715418632684,-5624.7425894,0.00012878,2]
[326813610,1715418632693,-164.74594413,0.00012878,2]
[326813611,1715418632702,-317.09866091,0.00012878,2]
[326813612,1715418632711,-31026.1167,0.00012878,2]
[326813613,1715418632721,-882.4512,0.00012878,2]
[326813614,1715418632730,-171.24335524,0.0001288,2]
[326813615,1715418632739,-171.24335524,0.0001289,2]
[326813616,1715418632749,-3688.726,0.00012893,2]
[326813617,1715418632758,-332.96,0.000129,2]
[326813618,1715418632767,-523.42,0.000129,2]
[326813619,1715418632776,-415.01,0.000129,2]
[326813620,1715418632786,-305.45,0.000129,2]
[326813621,1715418632795,-300.0,0.000129,2]
[326813622,1715418632805,-150.0,0.000129,2]
[326813623,1715418632814,-163.24,0.000129,2]
[326813624,1715418632823,-868.62,0.000129,2]
[326813625,1715418632833,-420.16,0.000129,2]
[326813626,1715418632843,-523.42,0.000129,2]
[326813627,1715418632854,-233.46,0.000129,2]
[326813628,1715418632863,-150.0,0.000129,2]
[326813629,1715418632873,-346.27,0.000129,2]
[326813630,1715418632882,-415.01,0.000129,2]
[326813631,1715418632892,-338.34,0.000129,2]
[326813632,1715418632903,-300.0,0.000129,2]
[326813633,1715418632913,-868.62,0.000129,2]
[326813634,1715418632923,-171.24335524,0.000129,2]
[326813635,1715418632933,-34300.58199325,0.0001295,2]
[326813636,1715418632947,-1237.59672522,0.0001295,2]
[326813637,1715418632989,-642.7,0.0001295,2]
[326813638,1715418633001,-141659.12128153,0.0001295,2]
[326813639,1715418633010,-2157.0,0.00012962,2]
[326813640,1715418633023,-972.0,0.00012962,2]
[326813641,1715418633032,-1398.0,0.00012962,2]
[326813642,1715418633041,-543.0,0.00012962,2]
[326813643,1715418633052,-1364.954,0.00012962,2]
[326813644,1715418633061,-1226.0,0.00012962,2]
[326813645,1715418633071,-1789.0,0.00012962,2]
[326813646,1715418633080,-612.0,0.00012962,2]
[326813647,1715418633089,-438.0,0.00012962,2]
[326813648,1715418633099,-421.0,0.00012962,2]
[326813649,1715418633108,-809.0,0.00012962,2]
[326813650,1715418633117,-2412.0,0.00012962,2]
[326813651,1715418633126,-1646.0,0.00012962,2]
[326813652,1715418633135,-150.0,0.00012962,2]
[326813653,1715418633145,-457.377,0.00012962,2]
[326813654,1715418633154,-215.0,0.00012962,2]
[326813655,1715418633163,-1138.0,0.00012962,2]
[326813656,1715418633172,-444.0,0.00012962,2]
[326813657,1715418633181,-151.79,0.0001297,2]
[326813658,1715418633191,-360.30276025,0.00012976,2]
[326813659,1715418633201,-155.0,0.00012976,2]
[326813660,1715418633210,-711.54040194,0.00012976,2]
[326813661,1715418633220,-181.19160963,0.00012976,2]
[326813662,1715418633229,-325.25166035,0.00012976,2]
[326813663,1715418633238,-189.84945054,0.00012976,2]
[326813664,1715418633247,-1634.14850194,0.00012976,2]
[326813665,1715418633257,-1034.52556333,0.00012977,3]
[326813666,1715418633267,-1034.52556333,0.00012977,3]
[326813667,1715418633277,-291.15622066,0.00012977,2]
[326813668,1715418633287,-1409.95370816,0.00012977,2]
[326813669,1715418633296,-1026.0,0.00012978,2]
[326813670,1715418633306,-573980.03340964,0.00012978,2]
[326813671,1715418633317,-6359.40764888,0.00012978,2]
[326813672,1715418633362,-409.86265904,0.00012258,2]
[326813673,1715418633371,-90.13734096,0.00012978,2]
[326813674,1715418633413,-5126.44813225,0.00012978,2]
[326813699,1715418638821,-819.045632,0.00011736,2]
[326813700,1715418638831,-919.0,0.00012978,2]
[326813701,1715418638841,-141758.5103708,0.00012978,2]
[326813702,1715418638899,-230478.6330759,0.00012978,2]
[326813703,1715418638927,-473.64023874,0.00012978,2]
[326813704,1715418638939,-7491.696338,0.00012978,2]
[326813705,1715418638951,-33351.28025557,0.00012978,2]
[326813706,1715418639044,-1496.44118586,0.00012978,2]
[326813710,1715418642556,-26651.21409127,0.00012978,2]
[326813711,1715418642568,-618.4056373,0.00012978,2]
[326813712,1715418642579,-7832.36363727,0.00012978,2]
[326813734,1715418643422,-704.97685408,0.00012977,2]
[326813735,1715418643431,-132.87404826,0.00012978,2]
[326813736,1715418643442,-490.2566817,0.00012978,2]
[326813737,1715418643672,-3164.06029724,0.00012978,2]
[326813792,1715419006516,409.86265904,0.00012166,2]
[326813798,1715419192017,409.86265904,0.00012166,2]
[326813802,1715419279808,180.1159484,0.00012039,2]
[326813821,1715419625114,-184.55,0.00011982,2]
[326813822,1715419625137,-129.91962184,0.00011985,2]
[326813823,1715419626134,-491.21037816,0.00011985,2]
[326813824,1715419626158,-409.86265904,0.00012034,2]
[326813825,1715419626178,-182.26,0.00012035,2]
[326813826,1715419626201,-69.8840516,0.00012039,2]
[326813827,1715419626222,-1000.0,0.00012167,2]
[326813828,1715419626245,-183.53,0.0001227,2]
[326813829,1715419626265,-3448.95226355,0.00012708,2]
[326813830,1715419626286,-150.0,0.00012717,2]
[326813831,1715419626308,-9510.311,0.00012718,2]
[326813832,1715419626328,-2134.89633379,0.00012718,2]
[326813833,1715419832502,-409.86265904,0.00012132,2]
[326813834,1715419832511,-250.0,0.00012133,2]
[326813835,1715419832521,-1472.46432644,0.00012718,2]
[326813836,1715419832531,-5422.95561075,0.00012718,2]
[326813837,1715419832772,-479.99572902,0.00012718,2]
[326813838,1715419832782,-8572.93673281,0.00012718,2]
[326813906,1715419838502,-362.27637,0.00012718,2]
[326813907,1715419838575,-575.09889719,0.00012718,2]
[326813908,1715419838585,-9510.311,0.00012718,2]
[326813909,1715419838597,-9510.311,0.00012718,2]
[326813910,1715419838607,-3501.49195481,0.00012745,2]
[326813911,1715419838617,-1562.13781289,0.00012799,2]
[326813912,1715419838626,-169.22510833,0.00012848,2]
[326813913,1715419838635,-1736.731,0.00012848,2]
[326813914,1715419838645,-1736.731,0.00012848,2]
[326813915,1715419838655,-1736.731,0.00012848,2]
[326813916,1715419838669,-1736.731,0.00012848,2]
[326813917,1715419838678,-1736.731,0.00012848,2]
[326813918,1715419838688,-317.26514807,0.00012848,2]
[326813919,1715419838698,-200.0,0.00012874,2]
[326813920,1715419838707,-1000.0,0.00012874,2]
[326813921,1715419838717,-200.0,0.00012874,2]
[326813922,1715419838726,-500.0,0.00012874,2]
[326813923,1715419838736,-1057.7804838,0.00012878,2]
[326813924,1715419838746,-5176.34825454,0.0001288,2]
[326813925,1715419838756,-1057.78048381,0.0001288,2]
[326813926,1715419838765,-150.0,0.000129,2]
[326813928,1715419838774,-3732.29,0.00012909,2]
[326813929,1715419838784,-3621.563,0.00012959,2]
[326813930,1715419838793,-3668.11,0.00012968,2]
[326813931,1715419838802,-438.0,0.00012971,2]
[326813932,1715419838812,-421.0,0.00012971,2]
[326813933,1715419838822,-370.245,0.00012971,2]
[326813934,1715419838831,-1646.0,0.00012971,2]
[326813935,1715419838841,-1490.39,0.00012971,2]
[326813936,1715419838851,-1138.0,0.00012971,2]
[326813937,1715419838859,-215.0,0.00012971,2]
[326813938,1715419838868,-444.0,0.00012971,2]
[326813939,1715419838877,-972.0,0.00012971,2]
[326813940,1715419838886,-238.368,0.00012971,2]
[326813941,1715419838896,-574.326,0.00012971,2]
[326813942,1715419838905,-1226.0,0.00012971,2]
[326813943,1715419838914,-1260.0,0.00012971,2]
[326813944,1715419838924,-301.09500677,0.00012976,2]
[326813945,1715419838933,-155.0,0.00012976,2]
[326813946,1715419838942,-366.88353949,0.00012976,2]
[326813947,1715419838952,-524.99904865,0.00012976,2]
[326813948,1715419838961,-217.17697784,0.00012976,2]
[326813949,1715419838971,-237.26391854,0.00012976,2]
[326813950,1715419838980,-486.31209282,0.00012976,2]
[326813951,1715419838989,-882.63658573,0.00012976,2]
[326813952,1715419838999,-505.14083342,0.00012977,2]
[326813953,1715419839009,-704.97685407,0.00012977,2]
[326813954,1715419839018,-45567.00728468,0.00012977,2]
[326813955,1715419839028,-3603.705,0.00012978,2]
[326813956,1715419839038,-112299.73879045,0.00012978,2]
[326813965,1715419840731,-462.50499999,0.00012978,2]
[326814013,1715419847440,-1789.0,0.00012971,2]
[326814014,1715419847451,-543.0,0.00012971,2]
[326814015,1715419847460,-64.94558482,0.00012977,2]
[326814016,1715419847915,-344.91707422,0.00012977,2]
[326814017,1715419847925,-20935.08292578,0.00012978,2]
[326814019,1715420097001,23900.0,0.00011404,2]
[326814020,1715420184697,1248.95,0.00011367,2]
[326814021,1715420198096,222.15,0.00011395,2]
[326814023,1715420234502,3330.19,0.00011399,2]
[326814024,1715420241456,749.3,0.00011498,2]
[326814025,1715420242005,749.3,0.0001153,2]
[326814026,1715420242778,749.3,0.00011561,2]
[326814027,1715420243029,749.3,0.00011593,2]
[326814028,1715420243200,749.3,0.00011624,2]
[326814029,1715420243370,749.3,0.00011656,2]
[326814030,1715420243723,749.3,0.00011688,2]
[326814031,1715420257570,250.0,0.00011281,2]
[326814032,1715420310567,1293.45,0.00011291,2]
[326814033,1715420312054,357.905496,0.00011658,2]
[326814034,1715420389737,171.89,0.00011313,2]
[326814035,1715420518096,250.0,0.00011311,2]
[326814037,1715420652892,832.3,0.00011322,2]
[326814039,1715420708645,487.04,0.00011439,2]
[326814040,1715420708806,487.04,0.00011471,2]
[326814041,1715420708922,487.04,0.00011502,2]
[326814042,1715420709350,487.04,0.00011533,2]
[326814043,1715420709964,487.04,0.00011565,2]
[326814044,1715420710075,487.04,0.00011596,2]
[326814045,1715420710546,487.04,0.00011627,2]
[326814046,1715420710652,487.04,0.00011659,2]
[326814047,1715420710823,487.04,0.0001169,2]
[326814048,1715420734057,250.0,0.0001136,2]
[326814049,1715420749984,183.53,0.00011354,2]
[326814050,1715420796501,155.0,0.00011701,2]
[326814062,1715421031819,-155.0,0.00011721,2]
[326814063,1715421031830,-424.978432,0.00011722,2]
[326814064,1715421031881,-62.061568,0.00011722,2]
[326814065,1715421031890,-318.76824656,0.00011753,2]
[326814066,1715421031902,-168.27175344,0.00011753,2]
[326814067,1715421031911,-487.04,0.00011784,2]
[326814068,1715421031920,-487.04,0.00011816,2]
[326814069,1715421031929,-487.04,0.00011847,2]
[326814070,1715421031939,-487.04,0.00011878,2]
[326814071,1715421031948,-487.04,0.0001191,2]
[326814072,1715421031957,-487.04,0.00011941,2]
[326814073,1715421031966,-487.04,0.00011973,2]
[326814074,1715421031975,-409.86265904,0.00012,2]
[326814075,1715421031984,-487.04,0.00012004,2]
[326814076,1715421031993,-487.04,0.00012035,2]
[326814077,1715421032002,-599.46,0.00012063,2]
[326814078,1715421032011,-599.46,0.00012067,2]
[326814079,1715421032021,-599.46,0.0001207,2]
[326814081,1715421032030,-369.91584148,0.00012073,2]
[326814083,1715421032043,-229.54415852,0.00012073,2]
[326814085,1715421032053,-553.60373649,0.00012076,2]
[326814087,1715421032064,-45.85626351,0.00012076,2]
[326814089,1715421032073,-599.46,0.00012079,2]
[326814090,1715421032082,-599.46,0.00012082,2]
[326814091,1715421032091,-599.46,0.00012086,2]
[326814092,1715421032101,-13850.68,0.00012087,2]
[326814093,1715421032110,-599.46,0.00012089,2]
[326814094,1715421032120,-599.46,0.00012092,2]
[326814095,1715421032129,-599.46,0.00012095,2]
[326814096,1715421032137,-599.46,0.00012098,2]
[326814097,1715421032146,-599.46,0.00012101,2]
[326814098,1715421032155,-599.46,0.00012105,2]
[326814099,1715421032164,-599.46,0.00012108,2]
[326814100,1715421032173,-599.46,0.00012111,2]
[326814101,1715421032182,-599.46,0.00012114,2]
[326814102,1715421032191,-599.46,0.00012117,2]
[326814103,1715421032199,-599.46,0.00012121,2]
[326814104,1715421032208,-599.46,0.00012124,2]
[326814105,1715421032218,-1000.0,0.00012363,2]
[326814106,1715421032227,-163.27,0.000124,2]
[326814107,1715421032236,-163.27,0.000124,2]
[326814108,1715421032245,-814.43,0.00012441,2]
[326814109,1715421032253,-171.87,0.00012511,2]
[326814110,1715421032262,-304.36,0.00012578,2]
[326814111,1715421032271,-750.5394,0.00012678,2]
[326814112,1715421032280,-1046.16,0.00012678,2]
[326814113,1715421032289,-568.03222421,0.00012718,2]
[326814114,1715421032298,-48037.07362407,0.00012718,2]
[326814115,1715421032308,-301.56698633,0.00012718,2]
[326814116,1715421032317,-547.35752792,0.00012718,2]
[326814117,1715421032326,-193.2995,0.00012778,2]
[326814118,1715421032335,-47290.7585,0.00012778,2]
[326814119,1715421032344,-469.4591,0.00012778,2]
[326814120,1715421032353,-173.9469,0.00012778,2]
[326814121,1715421032362,-856.87085764,0.00012783,2]
[326814122,1715421032372,-188.69303716,0.000128,2]
[326814123,1715421032381,-304.93278461,0.000128,2]
[326814124,1715421032391,-163.27,0.00012805,2]
[326814125,1715421032400,-163.27,0.00012805,2]
[326814126,1715421032410,-325.88,0.00012805,2]
[326814127,1715421032422,-222.15,0.00012819,2]
[326814128,1715421032431,-1562.13781289,0.0001282,2]
[326814129,1715421032440,-2269.442,0.00012848,2]
[326814130,1715421032450,-2269.443,0.00012848,2]
[326814131,1715421032459,-2269.443,0.00012848,2]
[326814132,1715421032468,-2269.443,0.00012848,2]
[326814133,1715421032478,-2269.443,0.00012848,2]
[326814134,1715421032487,-251.91007333,0.00012848,2]
[326814135,1715421032496,-14509.51758885,0.0001285,2]
[326814136,1715421032506,-1000.0,0.00012873,2]
[326814137,1715421032515,-200.0,0.00012874,2]
[326814138,1715421032524,-1000.0,0.00012874,2]
[326814139,1715421032533,-200.0,0.00012874,2]
[326814140,1715421032542,-500.0,0.00012874,2]
[326814141,1715421032551,-155.0,0.00012876,2]
[326814142,1715421032560,-157.15692112,0.00012876,2]
[326814143,1715421032569,-882.63658573,0.00012877,2]
[326814144,1715421032578,-1000.0,0.00012878,2]
[326814145,1715421032587,-165.1494,0.00012878,2]
[326814146,1715421032596,-77448.21409566,0.00012878,2]
[326814147,1715421032610,-1865.69249295,0.00012878,2]
[326814148,1715421032623,-670.28116184,0.00012878,2]
[326814149,1715421032634,-528.592,0.00012878,2]
[326814150,1715421032703,-1451.37880694,0.00012878,2]
[326814151,1715421032714,-363.20539468,0.00012878,2]
[326814152,1715421032725,-2684.51281324,0.00012878,2]
[326814153,1715421032736,-270.25,0.00012878,2]
[326814154,1715421032748,-655.60712406,0.00012878,2]
[326814155,1715421032776,-561.51132701,0.00012878,2]
[326814156,1715421032787,-13500.75478362,0.00012878,2]
[326814157,1715421032796,-2374.89000754,0.00012878,2]
[326814158,1715421032806,-266.95294903,0.00012878,2]
[326814175,1715421037786,-655.43396062,0.00012878,2]
[326814176,1715421037895,-17688.49258281,0.00012878,2]
[326814177,1715421037904,-156.9654,0.00012878,2]
[326814178,1715421037914,-4744.98590005,0.0001288,2]
[326814179,1715421037923,-877.33103238,0.000129,2]
[326814180,1715421037933,-183525.47706398,0.000129,2]
[326814181,1715421037943,-531.0942331,0.000129,2]
[326814182,1715421037953,-531.09423305,0.000129,2]
[326814183,1715421037962,-531.09423305,0.000129,2]
[326814184,1715421037970,-531.09423305,0.000129,2]
[326814185,1715421037980,-531.09423305,0.000129,2]
[326814186,1715421037989,-531.09423305,0.000129,2]
[326814187,1715421037998,-505.3249244,0.000129,2]
[326814188,1715421038023,-25.76930865,0.000129,2]
[326814189,1715421038032,-531.09423305,0.000129,2]
[326814190,1715421038042,-1000.0,0.000129,2]
[326814191,1715421038056,-198.88015173,0.00012968,2]
[326814192,1715421038065,-715.295,0.00012974,2]
[326814193,1715421038074,-543.0,0.00012974,2]
[326814194,1715421038083,-1226.0,0.00012974,2]
[326814195,1715421038092,-1789.0,0.00012974,2]
[326814196,1715421038101,-1260.0,0.00012974,2]
[326814197,1715421038110,-434.553,0.00012974,2]
[326814198,1715421038119,-421.0,0.00012974,2]
[326814199,1715421038130,-1646.0,0.00012974,2]
[326814200,1715421038139,-287.389,0.00012974,2]
[326814201,1715421038148,-211.0,0.00012974,2]
[326814202,1715421038156,-150.761,0.00012974,2]
[326814203,1715421038166,-155.4414,0.00012976,2]
[326814204,1715421038175,-237.26391854,0.00012976,2]
[326814205,1715421038183,-217.17697784,0.00012976,2]
[326814206,1715421038192,-505.14083342,0.00012976,2]
[326814207,1715421038202,-301.09500677,0.00012976,2]
[326814208,1715421038211,-782.7917937,0.00012977,2]
[326814209,1715421038220,-704.97685407,0.00012977,2]
[326814210,1715421038229,-1620.6410171,0.00012977,2]
[326814211,1715421038241,-585.89428871,0.00012977,2]
[326814212,1715421038251,-43360.47197887,0.00012977,2]
[326814213,1715421038260,-122491.46395359,0.00012978,2]
[326814215,1715421038271,-2875.0419189,0.00012978,2]
[326814220,1715421040226,-1080.10369994,0.00012978,2]
[326814223,1715421040294,-27065.44658059,0.00012978,2]
[326814224,1715421040304,-155.45907951,0.00012978,2]
[326814225,1715421040313,-207.95050793,0.00012978,2]
[326814226,1715421040322,-345.39930629,0.00012978,2]
[326814227,1715421040332,-8359.13953205,0.00012978,2]
[326814228,1715421040341,-1144.51683776,0.00012978,2]
[326814229,1715421040350,-1485.87622864,0.00012978,2]
[326814230,1715421040359,-409.26681316,0.00012978,2]
[326814232,1715421040369,-156.06906143,0.00012978,2]
[326814233,1715421040379,-327.9752477,0.00012978,2]